fUSD/lending_fUSD_20250720
["ID","MTS","AMOUNT","RATE_DAILY","PERIOD"]
[373468079,1753017096234,-480.0,0.00020054,2]
[373468080,1753017096245,-559.71,0.00020054,2]
[373468081,1753017096256,-549.06,0.00020054,2]
[373468082,1753017096266,-480.0,0.00020054,2]
[373468083,1753017096275,-627.11,0.00020054,2]
[373468084,1753017096284,-623.45,0.00020054,2]
[373468085,1753017096294,-480.0,0.00020054,2]
[373468086,1753017096304,-480.0,0.00020054,2]
[373468087,1753017096313,-730.3,0.00020054,2]
[373468088,1753017096323,-482.51792224,0.00020054,2]
[373468089,1753017096332,-691.2,0.00020054,2]
[373468090,1753017096341,-553.59,0.00020054,2]
[373468091,1753017096350,-503.01,0.00020054,2]
[373468092,1753017096359,-440.01581089,0.00020054,2]
[373468093,1753017096369,-527.76,0.00020054,2]
[373468094,1753017096388,-587.03,0.00020054,2]
[373468095,1753017096397,-854.71,0.00020054,2]
[373468096,1753017096406,-633.77,0.00020054,2]
[373468097,1753017096416,-855.53,0.00020054,2]
[373468098,1753017096424,-480.0,0.00020054,2]
[373468099,1753017096433,-480.0,0.00020054,2]
[373468100,1753017096442,-480.0,0.00020054,2]
[373468101,1753017096452,-169.808134,0.00020054,2]
[373468102,1753017096462,-863.86,0.00020054,2]
[373468103,1753017096472,-946.66,0.00020054,2]
[373468104,1753017096482,-480.0,0.00020054,2]
[373468105,1753017096492,-480.0,0.00020054,2]
[373468106,1753017096501,-480.0,0.00020054,2]
[373468107,1753017096511,-480.0,0.00020054,2]
[373468108,1753017096522,-687.85,0.00020054,2]
[373468109,1753017096533,-1039.01,0.00020054,2]
[373468110,1753017096543,-480.0,0.00020054,2]
[373468111,1753017096553,-480.0,0.00020054,2]
[373468112,1753017096562,-480.0,0.00020054,2]
[373468113,1753017096572,-3553.23,0.00020054,2]
[373468114,1753017096582,-738.62,0.00020054,2]
[373468115,1753017096591,-480.0,0.00020054,2]
[373468116,1753017096600,-480.0,0.00020054,2]
[373468117,1753017096610,-518.78,0.00020054,2]
[373468118,1753017096620,-480.0,0.00020054,2]
[373468119,1753017096629,-480.0,0.00020054,2]
[373468120,1753017096638,-480.0,0.00020054,2]
[373468121,1753017096648,-1780.15,0.00020054,2]
[373468122,1753017096659,-480.0,0.00020054,2]
[373468123,1753017096668,-785.24,0.00020054,2]
[373468124,1753017096678,-480.0,0.00020054,2]
[373468125,1753017096687,-151.0,0.00020054,2]
[373468126,1753017096697,-480.0,0.00020054,2]
[373468127,1753017096708,-704.79,0.00020054,2]
[373468128,1753017096718,-512.33,0.00020054,2]
[373468129,1753017096728,-480.0,0.00020054,2]
[373468130,1753017096738,-619.75,0.00020054,2]
[373468131,1753017096749,-1397.47,0.00020054,2]
[373468132,1753017096759,-632.04,0.00020054,2]
[373468133,1753017096772,-480.0,0.00020054,2]
[373468134,1753017096782,-480.0,0.00020054,2]
[373468135,1753017096792,-480.0,0.00020054,2]
[373468136,1753017096802,-499.9,0.00020054,2]
[373468137,1753017096811,-480.0,0.00020054,2]
[373468138,1753017096821,-480.0,0.00020054,2]
[373468139,1753017096831,-480.0,0.00020054,2]
[373468140,1753017096840,-151.0,0.00020054,2]
[373468141,1753017096850,-480.0,0.00020054,2]
[373468142,1753017096860,-561.14,0.00020054,2]
[373468143,1753017096869,-698.23,0.00020054,2]
[373468144,1753017096879,-480.0,0.00020054,2]
[373468145,1753017096889,-966.01,0.00020054,2]
[373468146,1753017096898,-480.0,0.00020054,2]
[373468147,1753017096907,-480.0,0.00020054,2]
[373468148,1753017096916,-480.0,0.00020054,2]
[373468149,1753017096926,-2587.61,0.00020054,2]
[373468150,1753017096936,-508.38,0.00020054,2]
[373468151,1753017096945,-887.97,0.00020054,2]
[373468152,1753017097108,-480.0,0.00020054,2]
[373468153,1753017097117,-527.84,0.00020054,2]
[373468154,1753017097128,-885.97,0.00020054,2]
[373468155,1753017097137,-579.20993126,0.00020054,2]
[373468156,1753017097146,-151.0,0.00020054,2]
[373468157,1753017097156,-480.0,0.00020054,2]
[373468158,1753017097165,-282.76,0.00020054,2]
[373468159,1753017097175,-649.01,0.00020054,2]
[373468160,1753017097184,-1167.69,0.00020054,2]
[373468161,1753017097194,-480.0,0.00020054,2]
[373468162,1753017097205,-596.23,0.00020054,2]
[373468163,1753017097214,-151.0,0.00020054,2]
[373468164,1753017097224,-981.05,0.00020054,2]
[373468165,1753017097234,-951.99,0.00020054,2]
[373468166,1753017097244,-1569.89,0.00020054,2]
[373468167,1753017097253,-979.63,0.00020054,2]
[373468168,1753017097263,-1103.5,0.00020054,2]
[373468169,1753017097272,-480.0,0.00020054,2]
[373468170,1753017097282,-480.0,0.00020054,2]
[373468171,1753017097291,-480.0,0.00020054,2]
[373468172,1753017097301,-480.0,0.00020054,2]
[373468173,1753017097310,-480.0,0.00020054,2]
[373468174,1753017097319,-611.3,0.00020054,2]
[373468175,1753017097329,-780.54,0.00020054,2]
[373468176,1753017097338,-480.0,0.00020054,2]
[373468177,1753017097347,-480.0,0.00020054,2]
[373468178,1753017097357,-480.0,0.00020054,2]
[373468179,1753017097366,-682.46,0.00020054,2]
[373468180,1753017097376,-480.0,0.00020054,2]
[373468181,1753017097385,-1603.58,0.00020054,2]
[373468182,1753017097395,-151.0,0.00020054,2]
[373468183,1753017097405,-932.82,0.00020054,2]
[373468184,1753017097414,-1481.32,0.00020054,2]
[373468185,1753017097424,-958.44,0.00020054,2]
[373468186,1753017097433,-480.0,0.00020054,2]
[373468187,1753017097443,-480.0,0.00020054,2]
[373468188,1753017097452,-480.0,0.00020054,2]
[373468189,1753017097461,-577.7,0.00020054,2]
[373468190,1753017097471,-480.0,0.00020054,2]
[373468191,1753017097481,-739.86,0.00020054,2]
[373468192,1753017097491,-649.08,0.00020054,2]
[373468193,1753017097500,-480.0,0.00020054,2]
[373468194,1753017097510,-513.0,0.00020054,2]
[373468195,1753017097520,-838.97,0.00020054,2]
[373468196,1753017097529,-3028.24,0.00020054,2]
[373468197,1753017097538,-565.62,0.00020054,2]
[373468198,1753017097548,-1906.31,0.00020054,2]
[373468199,1753017097557,-853.59,0.00020054,2]
[373468200,1753017097567,-480.0,0.00020054,2]
[373468201,1753017097577,-480.0,0.00020054,2]
[373468202,1753017097587,-480.0,0.00020054,2]
[373468203,1753017097596,-1696.96,0.00020054,2]
[373468204,1753017097606,-480.0,0.00020054,2]
[373468205,1753017097615,-981.38,0.00020054,2]
[373468206,1753017097624,-2026.54,0.00020054,2]
[373468207,1753017097634,-823.88,0.00020054,2]
[373468208,1753017097643,-480.0,0.00020054,2]
[373468209,1753017097652,-963.41,0.00020054,2]
[373468210,1753017097662,-830.46,0.00020054,2]
[373468211,1753017097672,-5709.5,0.00020054,2]
[373468212,1753017097681,-569.92,0.00020054,2]
[373468213,1753017097691,-480.0,0.00020054,2]
[373468214,1753017097700,-648.1,0.00020054,2]
[373468215,1753017097710,-480.0,0.00020054,2]
[373468216,1753017097719,-1388.48,0.00020054,2]
[373468217,1753017097730,-729.74,0.00020054,2]
[373468218,1753017097739,-5215.18,0.00020054,2]
[373468219,1753017097749,-827.12,0.00020054,2]
[373468220,1753017097757,-1044.1,0.00020054,2]
[373468221,1753017097770,-2977.2,0.00020054,2]
[373468222,1753017097780,-838.71,0.00020054,2]
[373468223,1753017097789,-480.0,0.00020054,2]
[373468224,1753017097800,-151.0,0.00020054,2]
[373468225,1753017097810,-993.38,0.00020054,2]
[373468226,1753017097820,-480.0,0.00020054,2]
[373468227,1753017097829,-738.73,0.00020054,2]
[373468228,1753017097838,-480.0,0.00020054,2]
[373468229,1753017097851,-942.6,0.00020054,2]
[373468230,1753017097861,-480.0,0.00020054,2]
[373468231,1753017097870,-480.0,0.00020054,2]
[373468232,1753017097880,-480.0,0.00020054,2]
[373468233,1753017097890,-153.972945,0.00020054,2]
[373468234,1753017097899,-154.718646,0.00020054,2]
[373468235,1753017097909,-846.89,0.00020054,2]
[373468236,1753017097921,-480.0,0.00020054,2]
[373468237,1753017097932,-1356.61,0.00020054,2]
[373468238,1753017097942,-1055.73,0.00020054,2]
[373468239,1753017097952,-1058.94,0.00020054,2]
[373468240,1753017097961,-521.75533886,0.00020054,2]
[373468241,1753017097971,-514.58,0.00020054,2]
[373468242,1753017097981,-480.0,0.00020054,2]
[373468243,1753017097991,-480.0,0.00020054,2]
[373468244,1753017098000,-950.68,0.00020054,2]
[373468245,1753017098010,-517.18,0.00020054,2]
[373468246,1753017098019,-480.0,0.00020054,2]
[373468247,1753017098028,-2178.9,0.00020054,2]
[373468248,1753017098038,-480.0,0.00020054,2]
[373468249,1753017098048,-947.79,0.00020054,2]
[373468250,1753017098058,-805.2,0.00020054,2]
[373468251,1753017098068,-718.39,0.00020054,2]
[373468252,1753017098078,-1183.55,0.00020054,2]
[373468253,1753017098087,-2110.58,0.00020054,2]
[373468254,1753017098096,-967.68,0.00020054,2]
[373468255,1753017098106,-480.0,0.00020054,2]
[373468256,1753017098116,-480.0,0.00020054,2]
[373468257,1753017098125,-2353.52,0.00020054,2]
[373468258,1753017098135,-4098.43,0.00020054,2]
[373468259,1753017098145,-1024.32,0.00020054,2]
[373468260,1753017098155,-2123.97,0.00020054,2]
[373468261,1753017098172,-696.21,0.00020054,2]
[373468262,1753017098191,-625.29,0.00020054,2]
[373468263,1753017098207,-644.66,0.00020054,2]
[373468264,1753017098225,-480.0,0.00020054,2]
[373468265,1753017098242,-577.79,0.00020054,2]
[373468266,1753017098258,-1455.7,0.00020054,2]
[373468267,1753017098277,-4394.04,0.00020054,2]
[373468268,1753017098295,-480.0,0.00020054,2]
[373468269,1753017098315,-151.0,0.00020054,2]
[373468270,1753017098332,-631.76,0.00020054,2]
[373468271,1753017098351,-1305.74,0.00020054,2]
[373468272,1753017098366,-3043.65,0.00020054,2]
[373468273,1753017098381,-480.0,0.00020054,2]
[373468274,1753017098396,-5028.52,0.00020054,2]
[373468275,1753017098412,-151.0,0.00020054,2]
[373468276,1753017098426,-1482.98,0.00020054,2]
[373468277,1753017098442,-480.0,0.00020054,2]
[373468278,1753017098456,-662.54,0.00020054,2]
[373468279,1753017098471,-937.5,0.00020054,2]
[373468280,1753017098486,-480.0,0.00020054,2]
[373468281,1753017098501,-480.0,0.00020054,2]
[373468282,1753017098515,-1666.2,0.00020054,2]
[373468283,1753017098532,-1222.76,0.00020054,2]
[373468284,1753017098548,-756.17,0.00020054,2]
[373468285,1753017098563,-1645.82,0.00020054,2]
[373468286,1753017098580,-1403.01,0.00020054,2]
[373468287,1753017098598,-541.13,0.00020054,2]
[373468288,1753017098613,-435.0,0.00020054,2]
[373468289,1753017098630,-480.0,0.00020054,2]
[373468290,1753017098644,-480.0,0.00020054,2]
[373468291,1753017098660,-1593.89,0.00020054,2]
[373468292,1753017098675,-480.0,0.00020054,2]
[373468293,1753017098691,-480.0,0.00020054,2]
[373468294,1753017098707,-1264.81,0.00020054,2]
[373468295,1753017098722,-480.0,0.00020054,2]
[373468296,1753017098740,-602.57,0.00020054,2]
[373468297,1753017098755,-2894.53,0.00020054,2]
[373468298,1753017098772,-628.9,0.00020054,2]
[373468299,1753017098788,-1769.9,0.00020054,2]
[373468300,1753017098804,-480.0,0.00020054,2]
[373468301,1753017098820,-1048.92,0.00020054,2]
[373468302,1753017098835,-1096.7,0.00020054,2]
[373468303,1753017098851,-1017.95,0.00020054,2]
[373468304,1753017098867,-1674.97,0.00020054,2]
[373468305,1753017098881,-480.0,0.00020054,2]
[373468306,1753017098898,-1796.0,0.00020054,2]
[373468307,1753017098914,-3402.31,0.00020054,2]
[373468308,1753017098930,-618.11,0.00020054,2]
[373468309,1753017098946,-1540.15,0.00020054,2]
[373468310,1753017098963,-673.18,0.00020054,2]
[373468311,1753017098977,-480.0,0.00020054,2]
[373468312,1753017098992,-3514.33,0.00020054,2]
[373468313,1753017099008,-480.0,0.00020054,2]
[373468314,1753017099023,-1724.33,0.00020054,2]
[373468315,1753017099039,-2932.34,0.00020054,2]
[373468316,1753017099054,-1323.7,0.00020054,2]
[373468317,1753017099069,-1852.55,0.00020054,2]
[373468318,1753017099084,-845.83,0.00020054,2]
[373468319,1753017099100,-480.0,0.00020054,2]
[373468320,1753017099115,-1157.0,0.00020054,2]
[373468321,1753017099130,-559.68,0.00020054,2]
[373468322,1753017099145,-671.29,0.00020054,2]
[373468323,1753017099160,-1185.66,0.00020054,2]
[373468324,1753017099176,-900.26,0.00020054,2]
[373468325,1753017099191,-1261.2,0.00020054,2]
[373468326,1753017099206,-1672.17,0.00020054,2]
[373468327,1753017099223,-480.0,0.00020054,2]
[373468328,1753017099237,-480.0,0.00020054,2]
[373468329,1753017099253,-4413.57,0.00020054,2]
[373468330,1753017099270,-480.0,0.00020054,2]
[373468331,1753017099285,-755.77,0.00020054,2]
[373468332,1753017099300,-722.76,0.00020054,2]
[373468333,1753017099314,-4158.01,0.00020054,2]
[373468334,1753017099329,-2463.68,0.00020054,2]
[373468335,1753017099343,-926.36,0.00020054,2]
[373468336,1753017099358,-1895.02,0.00020054,2]
[373468337,1753017099378,-758.0,0.00020054,2]
[373468338,1753017099394,-1614.88,0.00020054,2]
[373468339,1753017099410,-480.0,0.00020054,2]
[373468340,1753017099425,-480.0,0.00020054,2]
[373468341,1753017099441,-2738.51,0.00020054,2]
[373468342,1753017099457,-1019.8,0.00020054,2]
[373468343,1753017099474,-480.0,0.00020054,2]
[373468344,1753017099489,-728.28,0.00020054,2]
[373468345,1753017099505,-549.4,0.00020054,2]
[373468346,1753017099519,-671.87,0.00020054,2]
[373468347,1753017099534,-480.0,0.00020054,2]
[373468348,1753017099548,-2824.54,0.00020054,2]
[373468349,1753017099563,-541.64,0.00020054,2]
[373468350,1753017099578,-5142.63,0.00020054,2]
[373468351,1753017099593,-4422.78,0.00020054,2]
[373468352,1753017099607,-978.7,0.00020054,2]
[373468353,1753017099622,-759.39,0.00020054,2]
[373468354,1753017099637,-5113.01,0.00020054,2]
[373468355,1753017099652,-1685.16,0.00020054,2]
[373468356,1753017099666,-480.0,0.00020054,2]
[373468357,1753017099681,-169.618174,0.00020054,2]
[373468358,1753017099696,-657.21,0.00020054,2]
[373468359,1753017099710,-983.37,0.00020054,2]
[373468360,1753017099725,-639.545385,0.00020054,2]
[373468361,1753017099740,-1817.04,0.00020054,2]
[373468362,1753017099754,-601.7,0.00020054,2]
[373468363,1753017099770,-507.64,0.00020054,2]
[373468365,1753017099785,-639.545385,0.00020054,2]
[373468367,1753017099800,-731.23,0.00020054,2]
[373468368,1753017099815,-929.57,0.00020054,2]
[373468369,1753017099830,-833.88,0.00020054,2]
[373468370,1753017099845,-1000.0,0.00020054,2]
[373468371,1753017099861,-12606.02,0.00020054,2]
[373468372,1753017099875,-1549.75,0.00020054,2]
[373468373,1753017100111,-1508.11,0.00020054,2]
[373468374,1753017100134,-1419.97,0.00020054,2]
[373468375,1753017100144,-2260.87,0.00020054,2]
[373468376,1753017100154,-504.82,0.00020054,2]
[373468377,1753017100164,-800.6,0.00020054,2]
[373468378,1753017100173,-626.65,0.00020054,2]
[373468379,1753017100182,-665.1,0.00020054,2]
[373468380,1753017100191,-1744.39,0.00020054,2]
[373468381,1753017100201,-1056.09,0.00020054,2]
[373468382,1753017100210,-480.0,0.00020054,2]
[373468383,1753017100220,-796.56,0.00020054,2]
[373468384,1753017100229,-752.54,0.00020054,2]
[373468385,1753017100238,-1650.61,0.00020054,2]
[373468386,1753017100247,-788.92,0.00020054,2]
[373468387,1753017100256,-1127.31,0.00020054,2]
[373468388,1753017100266,-943.92,0.00020054,2]
[373468389,1753017100275,-1461.67,0.00020054,2]
[373468390,1753017100284,-986.58,0.00020054,2]
[373468391,1753017100294,-2098.14,0.00020054,2]
[373468392,1753017100303,-509.14,0.00020054,2]
[373468393,1753017100313,-1698.93,0.00020054,2]
[373468394,1753017100322,-1313.06,0.00020054,2]
[373468395,1753017100332,-1032.49,0.00020054,2]
[373468396,1753017100341,-6885.91,0.00020054,2]
[373468397,1753017100351,-2339.59,0.00020054,2]
[373468398,1753017100360,-3053.99,0.00020054,2]
[373468399,1753017100370,-518.46,0.00020054,2]
[373468400,1753017100379,-2127.43,0.00020054,2]
[373468401,1753017100388,-1040.39,0.00020054,2]
[373468402,1753017100398,-2204.23,0.00020054,2]
[373468403,1753017100406,-607.74,0.00020054,2]
[373468404,1753017100416,-3359.94,0.00020054,2]
[373468405,1753017100425,-151.0,0.00020054,2]
[373468406,1753017100435,-38027.73,0.00020054,2]
[373468407,1753017100444,-918.24,0.00020054,2]
[373468408,1753017100453,-1367.42,0.00020054,2]
[373468409,1753017100463,-995.02,0.00020054,2]
[373468410,1753017100473,-1323.1,0.00020054,2]
[373468411,1753017100482,-2240.44,0.00020054,2]
[373468412,1753017100491,-480.0,0.00020054,2]
[373468413,1753017100501,-1236.91,0.00020054,2]
[373468414,1753017100511,-2429.74,0.00020054,2]
[373468415,1753017100521,-2151.22,0.00020054,2]
[373468416,1753017100531,-1731.22,0.00020054,2]
[373468417,1753017100540,-889.82,0.00020054,2]
[373468418,1753017100549,-1271.07,0.00020054,2]
[373468419,1753017100559,-2750.09,0.00020054,2]
[373468420,1753017100569,-552.5,0.00020054,2]
[373468421,1753017100578,-289.07329,0.00020064,2]
[373468422,1753017100588,-500.0,0.00020073,2]
[373468423,1753017100598,-151.0,0.00020076,2]
[373468424,1753017100608,-151.0,0.00020076,2]
[373468425,1753017100617,-306.68,0.00020076,2]
[373468426,1753017100627,-680.21,0.00020076,2]
[373468427,1753017100637,-458.36,0.00020076,2]
[373468428,1753017100647,-1197.67,0.00020076,2]
[373468429,1753017100657,-263.82310691,0.00020076,2]
[373468430,1753017100667,-155.63703812,0.00020083,2]
[373468431,1753017100678,-152.77,0.00020084,2]
[373468432,1753017100688,-5000.0,0.00020089,2]
[373468433,1753017100698,-152.0,0.00020095,4]
[373468434,1753017100707,-239.84119403,0.00020097,2]
[373468435,1753017100716,-200.0,0.000201,2]
[373468436,1753017100726,-151.0,0.00020101,2]
[373468437,1753017100735,-151.0,0.00020101,2]
[373468438,1753017100745,-151.0,0.00020101,2]
[373468439,1753017100754,-151.0,0.00020101,2]
[373468440,1753017100763,-151.0,0.00020101,2]
[373468441,1753017100776,-151.0,0.00020101,2]
[373468442,1753017100786,-151.0,0.00020101,2]
[373468443,1753017100795,-2340.49,0.0002011,2]
[373468444,1753017100804,-151.0,0.0002011,2]
[373468445,1753017100814,-151.0,0.0002011,2]
[373468446,1753017100823,-151.0,0.0002011,2]
[373468447,1753017100833,-151.0,0.0002011,2]
[373468448,1753017100842,-151.0,0.0002011,2]
[373468449,1753017100851,-1811.52,0.00020156,2]
[373468450,1753017100860,-151.0,0.00020156,2]
[373468451,1753017100870,-151.0,0.00020156,2]
[373468452,1753017100879,-151.0,0.00020156,2]
[373468453,1753017100888,-151.0,0.00020156,2]
[373468454,1753017100897,-151.0,0.00020156,2]
[373468455,1753017100907,-295.599723,0.00020156,2]
[373468456,1753017100916,-190.527544,0.00020156,2]
[373468457,1753017100925,-190.527544,0.00020156,2]
[373468458,1753017100935,-163.09765,0.00020156,2]
[373468459,1753017100943,-163.09765,0.00020156,2]
[373468460,1753017100953,-164.363881,0.00020156,2]
[373468461,1753017100963,-164.363881,0.00020156,2]
[373468462,1753017100972,-151.0,0.00020156,2]
[373468463,1753017100982,-151.0,0.00020164,2]
[373468464,1753017100991,-151.0,0.00020164,2]
[373468465,1753017101000,-151.0,0.00020164,2]
[373468466,1753017101009,-152.619995,0.00020164,2]
[373468467,1753017101019,-151.0,0.00020164,2]
[373468468,1753017101028,-151.0,0.00020164,2]
[373468469,1753017101037,-151.0,0.00020164,2]
[373468470,1753017101047,-151.0,0.00020164,2]
[373468471,1753017101056,-151.0,0.00020164,2]
[373468472,1753017101065,-152.292616,0.00020164,2]
[373468473,1753017101075,-151.0,0.00020164,2]
[373468474,1753017101084,-151.0,0.00020164,2]
[373468475,1753017101094,-151.0,0.00020164,2]
[373468476,1753017101103,-531.67,0.00020164,2]
[373468477,1753017101112,-480.0,0.00020164,2]
[373468478,1753017101121,-480.0,0.00020164,2]
[373468479,1753017101131,-480.0,0.00020164,2]
[373468480,1753017101140,-522.76,0.00020164,2]
[373468481,1753017101149,-486.31,0.00020164,2]
[373468482,1753017101159,-158.364005,0.00020164,2]
[373468483,1753017101168,-151.0,0.00020164,2]
[373468484,1753017101178,-480.0,0.00020164,2]
[373468485,1753017101187,-908.756426,0.00020164,2]
[373468486,1753017101196,-480.0,0.00020164,2]
[373468487,1753017101205,-151.0,0.00020164,2]
[373468488,1753017101215,-480.0,0.00020164,2]
[373468489,1753017101224,-151.0,0.00020164,2]
[373468490,1753017101233,-1078.6235,0.00020164,2]
[373468491,1753017101242,-1096.031062,0.00020164,2]
[373468492,1753017101251,-151.0,0.00020164,2]
[373468493,1753017101261,-480.0,0.00020164,2]
[373468494,1753017101270,-480.0,0.00020164,2]
[373468495,1753017101279,-151.0,0.00020164,2]
[373468496,1753017101288,-151.0,0.00020164,2]
[373468497,1753017101297,-480.0,0.00020164,2]
[373468498,1753017101306,-151.0,0.00020164,2]
[373468499,1753017101315,-151.0,0.00020164,2]
[373468500,1753017101324,-165.681454,0.00020164,2]
[373468501,1753017101333,-168.323619,0.00020164,2]
[373468502,1753017101342,-921.73,0.00020164,2]
[373468503,1753017101351,-536.45,0.00020164,2]
[373468504,1753017101360,-151.0,0.00020164,2]
[373468505,1753017101369,-631.3,0.00020164,2]
[373468506,1753017101379,-325.37068988,0.00020164,2]
[373468507,1753017101388,-480.0,0.00020164,2]
[373468508,1753017101397,-480.0,0.00020164,2]
[373468509,1753017101406,-730.67,0.00020164,2]
[373468510,1753017101415,-920.27,0.00020164,2]
[373468511,1753017101424,-480.0,0.00020164,2]
[373468512,1753017101434,-559.71,0.00020164,2]
[373468513,1753017101443,-549.06,0.00020164,2]
[373468514,1753017101453,-480.0,0.00020164,2]
[373468515,1753017101462,-627.11,0.00020164,2]
[373468516,1753017101471,-623.45,0.00020164,2]
[373468517,1753017101481,-480.0,0.00020164,2]
[373468518,1753017101490,-480.0,0.00020164,2]
[373468519,1753017101499,-730.3,0.00020164,2]
[373468520,1753017101509,-691.2,0.00020164,2]
[373468521,1753017101518,-553.59,0.00020164,2]
[373468522,1753017101527,-503.01,0.00020164,2]
[373468523,1753017101537,-527.76,0.00020164,2]
[373468524,1753017101546,-854.71,0.00020164,2]
[373468525,1753017101555,-587.03,0.00020164,2]
[373468526,1753017101564,-633.77,0.00020164,2]
[373468527,1753017101573,-855.53,0.00020164,2]
[373468528,1753017101583,-480.0,0.00020164,2]
[373468529,1753017101593,-151.0,0.00020164,2]
[373468530,1753017101605,-480.0,0.00020164,2]
[373468531,1753017101616,-480.0,0.00020164,2]
[373468532,1753017101626,-151.0,0.00020164,2]
[373468533,1753017101639,-863.86,0.00020164,2]
[373468534,1753017101648,-946.66,0.00020164,2]
[373468535,1753017101657,-480.0,0.00020164,2]
[373468536,1753017101667,-480.0,0.00020164,2]
[373468537,1753017101885,-480.0,0.00020164,2]
[373468538,1753017101895,-319.74627314,0.00020164,2]
[373468539,1753017101905,-620.528413,0.00020164,2]
[373468540,1753017101915,-687.85,0.00020164,2]
[373468541,1753017101925,-1039.01,0.00020164,2]
[373468542,1753017101935,-480.0,0.00020164,2]
[373468543,1753017101944,-620.528413,0.00020164,2]
[373468544,1753017101954,-480.0,0.00020164,2]
[373468545,1753017101964,-738.62,0.00020164,2]
[373468546,1753017101975,-480.0,0.00020164,2]
[373468547,1753017101986,-3553.23,0.00020164,2]
[373468548,1753017101996,-281.95,0.00020164,2]
[373468549,1753017102006,-518.78,0.00020164,2]
[373468550,1753017102016,-480.0,0.00020164,2]
[373468551,1753017102025,-480.0,0.00020164,2]
[373468552,1753017102035,-430.0115856,0.00020164,2]
[373468553,1753017102044,-1780.15,0.00020164,2]
[373468554,1753017102055,-480.0,0.00020164,2]
[373468555,1753017102064,-785.24,0.00020164,2]
[373468556,1753017102074,-480.0,0.00020164,2]
[373468557,1753017102084,-480.0,0.00020164,2]
[373468558,1753017102093,-704.79,0.00020164,2]
[373468559,1753017102103,-512.33,0.00020164,2]
[373468560,1753017102113,-480.0,0.00020164,2]
[373468561,1753017102123,-619.75,0.00020164,2]
[373468562,1753017102132,-1397.47,0.00020164,2]
[373468563,1753017102141,-632.04,0.00020164,2]
[373468564,1753017102151,-480.0,0.00020164,2]
[373468565,1753017102160,-480.0,0.00020164,2]
[373468566,1753017102169,-607.11020757,0.00020164,2]
[373468567,1753017102179,-499.9,0.00020164,2]
[373468568,1753017102188,-480.0,0.00020164,2]
[373468569,1753017102197,-156.596884,0.00020164,2]
[373468570,1753017102207,-352.28588365,0.00020164,2]
[373468571,1753017102216,-480.0,0.00020164,2]
[373468572,1753017102225,-156.596884,0.00020164,2]
[373468573,1753017102235,-480.0,0.00020164,2]
[373468574,1753017102244,-561.14,0.00020164,2]
[373468575,1753017102253,-698.23,0.00020164,2]
[373468576,1753017102263,-480.0,0.00020164,2]
[373468577,1753017102272,-966.01,0.00020164,2]
[373468578,1753017102281,-480.0,0.00020164,2]
[373468579,1753017102290,-480.0,0.00020164,2]
[373468580,1753017102299,-480.0,0.00020164,2]